fUSD/lending_fUSD_20250211
["ID","MTS","AMOUNT","RATE_DAILY","PERIOD"]
[352725339,1739278258331,-510.63,0.00011369,2]
[352725340,1739278258340,-514.43,0.00011369,2]
[352725341,1739278258350,-853.31,0.00011369,2]
[352725342,1739278258359,-500.0,0.00011369,2]
[352725343,1739278258368,-500.0,0.00011369,2]
[352725344,1739278258377,-500.0,0.00011369,2]
[352725345,1739278258387,-736.93,0.00011369,2]
[352725346,1739278258396,-500.0,0.00011369,2]
[352725347,1739278258405,-549.89,0.00011369,2]
[352725348,1739278258415,-521.07,0.00011369,2]
[352725349,1739278258424,-1034.97,0.00011369,2]
[352725350,1739278258433,-500.0,0.00011369,2]
[352725351,1739278258442,-628.42,0.00011369,2]
[352725352,1739278258456,-500.0,0.00011369,2]
[352725353,1739278258465,-500.0,0.00011369,2]
[352725354,1739278258474,-822.52,0.00011369,2]
[352725355,1739278258483,-862.9,0.00011369,2]
[352725356,1739278258492,-500.0,0.00011369,2]
[352725357,1739278258502,-500.0,0.00011369,2]
[352725358,1739278258511,-608.45,0.00011369,2]
[352725359,1739278258520,-500.0,0.00011369,2]
[352725360,1739278258529,-500.0,0.00011369,2]
[352725361,1739278258539,-521.35,0.00011369,2]
[352725362,1739278258548,-500.0,0.00011369,2]
[352725363,1739278258557,-500.0,0.00011369,2]
[352725364,1739278258566,-500.0,0.00011369,2]
[352725365,1739278258576,-500.0,0.00011369,2]
[352725366,1739278258585,-500.0,0.00011369,2]
[352725367,1739278258595,-500.0,0.00011369,2]
[352725368,1739278258603,-507.97,0.00011369,2]
[352725369,1739278258614,-500.0,0.00011369,2]
[352725370,1739278258623,-1075.77,0.00011369,2]
[352725371,1739278258632,-925.31,0.00011369,2]
[352725372,1739278258641,-500.0,0.00011369,2]
[352725373,1739278258650,-817.64,0.00011369,2]
[352725374,1739278258659,-195.38617551,0.00011369,2]
[352725375,1739278258668,-500.0,0.00011369,2]
[352725376,1739278258677,-500.0,0.00011369,2]
[352725377,1739278258686,-868.03,0.00011369,2]
[352725378,1739278258695,-1269.51,0.00011369,2]
[352725379,1739278258710,-500.0,0.00011369,2]
[352725380,1739278258719,-500.0,0.00011369,2]
[352725381,1739278258728,-500.0,0.00011369,2]
[352725382,1739278258738,-500.0,0.00011369,2]
[352725383,1739278258747,-559.89,0.00011369,2]
[352725384,1739278258756,-500.0,0.00011369,2]
[352725385,1739278258764,-754.89,0.00011369,2]
[352725386,1739278258774,-500.0,0.00011369,2]
[352725387,1739278258783,-534.45,0.00011369,2]
[352725388,1739278258792,-673.72,0.00011369,2]
[352725389,1739278258801,-586.58,0.00011369,2]
[352725390,1739278258810,-500.0,0.00011369,2]
[352725391,1739278258819,-500.0,0.00011369,2]
[352725392,1739278258828,-767.53,0.00011369,2]
[352725393,1739278258837,-500.0,0.00011369,2]
[352725394,1739278258847,-500.0,0.00011369,2]
[352725395,1739278258856,-500.0,0.00011369,2]
[352725396,1739278258865,-534.6,0.00011369,2]
[352725397,1739278258874,-1040.12,0.00011369,2]
[352725398,1739278258884,-500.0,0.00011369,2]
[352725399,1739278258892,-518.33,0.00011369,2]
[352725400,1739278258902,-518.26,0.00011369,2]
[352725401,1739278258912,-500.0,0.00011369,2]
[352725402,1739278258921,-500.0,0.00011369,2]
[352725403,1739278258930,-500.0,0.00011369,2]
[352725404,1739278258939,-500.0,0.00011369,2]
[352725405,1739278258952,-500.0,0.00011369,2]
[352725406,1739278258961,-500.0,0.00011369,2]
[352725407,1739278258971,-500.0,0.00011369,2]
[352725408,1739278258980,-500.0,0.00011369,2]
[352725409,1739278258989,-762.53,0.00011369,2]
[352725410,1739278258999,-1099.58,0.00011369,2]
[352725411,1739278259009,-813.47,0.00011369,2]
[352725412,1739278259018,-1210.29,0.00011369,2]
[352725413,1739278259033,-500.0,0.00011369,2]
[352725414,1739278259043,-500.0,0.00011369,2]
[352725415,1739278259052,-1160.41,0.00011369,2]
[352725416,1739278259061,-500.0,0.00011369,2]
[352725417,1739278259072,-727.04,0.00011369,2]
[352725418,1739278259081,-500.0,0.00011369,2]
[352725419,1739278259091,-500.0,0.00011369,2]
[352725420,1739278259101,-500.0,0.00011369,2]
[352725421,1739278259110,-500.0,0.00011369,2]
[352725422,1739278259119,-500.0,0.00011369,2]
[352725423,1739278259287,-500.0,0.00011369,2]
[352725424,1739278259298,-1219.2,0.00011369,2]
[352725425,1739278259308,-838.73,0.00011369,2]
[352725426,1739278259318,-500.0,0.00011369,2]
[352725427,1739278259327,-500.0,0.00011369,2]
[352725428,1739278259337,-1240.35,0.00011369,2]
[352725429,1739278259347,-500.0,0.00011369,2]
[352725430,1739278259357,-500.0,0.00011369,2]
[352725431,1739278259367,-657.58,0.00011369,2]
[352725432,1739278259376,-500.0,0.00011369,2]
[352725433,1739278259386,-599.09,0.00011369,2]
[352725434,1739278259395,-555.14,0.00011369,2]
[352725435,1739278259405,-508.45193611,0.00011369,2]
[352725436,1739278259414,-500.0,0.00011369,2]
[352725437,1739278259423,-934.76,0.00011369,2]
[352725438,1739278259432,-719.34,0.00011369,2]
[352725439,1739278259441,-500.0,0.00011369,2]
[352725440,1739278259454,-500.0,0.00011369,2]
[352725441,1739278259463,-1246.38,0.00011369,2]
[352725442,1739278259472,-536.84,0.00011369,2]
[352725443,1739278259481,-500.0,0.00011369,2]
[352725444,1739278259490,-500.0,0.00011369,2]
[352725445,1739278259499,-500.0,0.00011369,2]
[352725446,1739278259508,-500.0,0.00011369,2]
[352725447,1739278259517,-500.0,0.00011369,2]
[352725448,1739278259526,-500.0,0.00011369,2]
[352725449,1739278259535,-569.49,0.00011369,2]
[352725450,1739278259544,-500.0,0.00011369,2]
[352725451,1739278259553,-627.5,0.00011369,2]
[352725452,1739278259562,-500.0,0.00011369,2]
[352725453,1739278259571,-709.41,0.00011369,2]
[352725454,1739278259580,-500.0,0.00011369,2]
[352725455,1739278259589,-509.17,0.00011369,2]
[352725456,1739278259598,-500.0,0.00011369,2]
[352725457,1739278259608,-1298.95,0.00011369,2]
[352725458,1739278259617,-411.33,0.00011369,2]
[352725459,1739278259626,-529.8,0.00011369,2]
[352725460,1739278259636,-500.0,0.00011369,2]
[352725461,1739278259645,-1103.27,0.00011369,2]
[352725462,1739278259655,-500.0,0.00011369,2]
[352725463,1739278259665,-500.0,0.00011369,2]
[352725464,1739278259675,-500.0,0.00011369,2]
[352725465,1739278259684,-500.0,0.00011369,2]
[352725466,1739278259693,-500.0,0.00011369,2]
[352725467,1739278259705,-943.71,0.00011369,2]
[352725468,1739278259714,-500.0,0.00011369,2]
[352725469,1739278259723,-500.0,0.00011369,2]
[352725470,1739278259732,-500.0,0.00011369,2]
[352725471,1739278259742,-500.0,0.00011369,2]
[352725472,1739278259751,-500.0,0.00011369,2]
[352725473,1739278259762,-543.05,0.00011369,2]
[352725474,1739278259771,-1105.37,0.00011369,2]
[352725475,1739278259781,-500.0,0.00011369,2]
[352725476,1739278259790,-500.0,0.00011369,2]
[352725477,1739278259799,-374.093574,0.00011369,2]
[352725478,1739278260313,-125.906426,0.00011369,2]
[352725479,1739278260323,-500.0,0.00011369,2]
[352725480,1739278260333,-85.4420765,0.00011369,2]
[352725481,1739278261240,-376.23720851,0.00011362,2]
[352725482,1739278261252,-414.5579235,0.00011369,2]
[352725483,1739278261265,-500.0,0.00011369,2]
[352725484,1739278261277,-500.0,0.00011369,2]
[352725485,1739278261290,-500.0,0.00011369,2]
[352725486,1739278261304,-500.0,0.00011369,2]
[352725487,1739278261317,-500.0,0.00011369,2]
[352725488,1739278261329,-927.53,0.00011369,2]
[352725489,1739278261342,-175.13522644,0.00011369,2]
[352725490,1739278261356,-500.0,0.00011369,2]
[352725491,1739278261369,-500.0,0.00011369,2]
[352725492,1739278261381,-500.0,0.00011369,2]
[352725493,1739278261394,-1197.3,0.00011369,2]
[352725494,1739278261407,-500.0,0.00011369,2]
[352725495,1739278261420,-500.0,0.00011369,2]
[352725496,1739278261432,-500.0,0.00011369,2]
[352725497,1739278261444,-500.0,0.00011369,2]
[352725498,1739278261459,-500.0,0.00011369,2]
[352725499,1739278261471,-448.80437483,0.00011369,2]
[352725500,1739278261487,-51.19562517,0.00011369,2]
[352725501,1739278261499,-601.32424283,0.00011369,2]
[352725502,1739278261844,-493.57,0.00010822,2]
[352725503,1739278261855,-805.87,0.00010958,2]
[352725504,1739278261865,-805.87,0.00011095,2]
[352725505,1739278261874,-805.87,0.00011232,2]
[352725506,1739278261884,-595.71575717,0.00011369,2]
[352725507,1739278261893,-500.0,0.00011369,2]
[352725508,1739278261903,-500.0,0.00011369,2]
[352725509,1739278261913,-500.0,0.00011369,2]
[352725510,1739278261922,-500.0,0.00011369,2]
[352725511,1739278261932,-500.0,0.00011369,2]
[352725512,1739278261941,-764.86,0.00011369,2]
[352725513,1739278261952,-648.7,0.00011369,2]
[352725514,1739278262317,-570.47,0.00011369,2]
[352725515,1739278262335,-500.0,0.00011369,2]
[352725516,1739278262359,-500.0,0.00011369,2]
[352725517,1739278262370,-954.26,0.00011369,2]
[352725518,1739278262381,-500.0,0.00011369,2]
[352725519,1739278262391,-635.76,0.00011369,2]
[352725520,1739278262401,-500.0,0.00011369,2]
[352725521,1739278262410,-500.0,0.00011369,2]
[352725522,1739278262419,-957.41,0.00011369,2]
[352725523,1739278262428,-500.0,0.00011369,2]
[352725524,1739278262437,-1394.62,0.00011369,2]
[352725525,1739278262446,-500.0,0.00011369,2]
[352725526,1739278262457,-500.0,0.00011369,2]
[352725527,1739278262466,-500.0,0.00011369,2]
[352725528,1739278262475,-1171.96,0.00011369,2]
[352725529,1739278262484,-500.0,0.00011369,2]
[352725530,1739278262493,-500.0,0.00011369,2]
[352725531,1739278262503,-500.0,0.00011369,2]
[352725532,1739278262512,-512.57,0.00011369,2]
[352725533,1739278262522,-500.0,0.00011369,2]
[352725534,1739278262531,-1358.2,0.00011369,2]
[352725535,1739278262540,-1708.32,0.00011369,2]
[352725536,1739278262550,-2512.7,0.00011369,2]
[352725537,1739278262559,-1292.19,0.00011369,2]
[352725538,1739278262568,-500.0,0.00011369,2]
[352725539,1739278262579,-500.0,0.00011369,2]
[352725540,1739278262588,-500.0,0.00011369,2]
[352725541,1739278262597,-500.0,0.00011369,2]
[352725542,1739278262607,-1716.39,0.00011369,2]
[352725543,1739278262616,-1173.39,0.00011369,2]
[352725544,1739278262625,-500.0,0.00011369,2]
[352725545,1739278262634,-401.57923216,0.00011369,2]
[352725546,1739278262643,-1929.69,0.00011369,2]
[352725547,1739278262652,-1610.03,0.00011369,2]
[352725548,1739278262661,-1922.28,0.00011369,2]
[352725549,1739278262671,-500.0,0.00011369,2]
[352725550,1739278262680,-502.54,0.00011369,2]
[352725551,1739278262690,-500.0,0.00011369,2]
[352725552,1739278262699,-500.0,0.00011369,2]
[352725553,1739278262710,-2114.25,0.00011369,2]
[352725554,1739278262720,-1171.54,0.00011369,2]
[352725555,1739278262729,-500.0,0.00011369,2]
[352725556,1739278262738,-657.39,0.00011369,2]
[352725557,1739278262747,-2287.02,0.00011369,2]
[352725558,1739278262757,-513.61,0.00011369,2]
[352725559,1739278262766,-500.0,0.00011369,2]
[352725560,1739278262775,-954.9,0.00011369,2]
[352725561,1739278262784,-500.0,0.00011369,2]
[352725562,1739278262793,-2336.6,0.00011369,2]
[352725563,1739278262803,-100.69307824,0.00011369,2]
[352725564,1739278262834,-399.30692176,0.00011369,2]
[352725565,1739278262843,-384.14931824,0.00011369,2]
[352725566,1739278262861,-115.85068176,0.00011369,2]
[352725567,1739278262870,-367.63931824,0.00011369,2]
[352725568,1739278290730,150.0,0.00018822,120]
[352725569,1739278306274,500.0,0.0002,120]
[352725570,1739278307407,230.0,0.0001712,90]
[352725571,1739278337155,224.63,0.0001712,90]
[352725572,1739278353619,1052.2188527,0.0002,120]
[352725573,1739278368120,224.62,0.0001712,90]
[352725576,1739278410735,150.0,0.00019379,120]
[352725577,1739278471554,150.0,0.0001887,120]
[352725578,1739278650721,150.0,0.00018327,120]
[352725579,1739278770745,150.0,0.00019513,120]
[352725580,1739278890786,150.0,0.00019054,120]
[352725582,1739279112208,501.0,0.0002,120]
[352725583,1739279180236,442.75,8.219e-05,2]
[352725589,1739279421177,-250.0,8.851e-05,2]
[352725590,1739279423435,-2250.0,8.851e-05,2]
[352725629,1739279432345,-402.9,9.417e-05,2]
[352725630,1739279432355,-354.9900005,9.522e-05,2]
[352725631,1739279432367,-510.674481,9.522e-05,2]
[352725632,1739279432378,-155.7755185,9.522e-05,2]
[352725633,1739279432390,-335.73,9.539e-05,3]
[352725634,1739279432399,-400.5520415,9.584e-05,2]
[352725635,1739279432567,-474.82116813,9.584e-05,2]
[352725692,1739279435364,289.66,0.0001712,90]
[352725699,1739279438103,-185.9612192,9.584e-05,2]
[352725700,1739279438113,-500.0,9.584e-05,2]
[352725701,1739279438122,-958.32,9.627e-05,2]
[352725702,1739279438131,-1000.0,9.734e-05,2]
[352725703,1739279438140,-300.0,9.763e-05,2]
[352725704,1739279438149,-600.0,9.764e-05,2]
[352725705,1739279438158,-600.0,9.764e-05,2]
[352725706,1739279438167,-1500.0,9.794e-05,2]
[352725707,1739279438177,-150.0,9.824e-05,2]
[352725708,1739279438186,-250.0,9.825e-05,2]
[352725709,1739279438195,-813.79,9.825e-05,2]
[352725710,1739279438205,-9999.99,9.825e-05,2]
[352725711,1739279438216,-248.85,9.825e-05,2]
[352725712,1739279438225,-999.99,9.825e-05,2]
[352725713,1739279438234,-9999.99,9.825e-05,2]
[352725714,1739279438243,-329.13,9.825e-05,2]
[352725715,1739279438252,-3567.67,9.825e-05,2]
[352725716,1739279438261,-150.99,9.825e-05,2]
[352725717,1739279438270,-10287.15,9.825e-05,2]
[352725718,1739279438279,-168.51,9.861e-05,2]
[352725719,1739279438288,-150.99,9.861e-05,2]
[352725720,1739279438297,-154.41,0.00010137,2]
[352725721,1739279438306,-151.55,0.00010142,2]
[352725722,1739279438314,-151.55,0.00010148,2]
[352725723,1739279438324,-151.55,0.00010155,2]
[352725724,1739279438333,-151.55,0.00010161,2]
[352725725,1739279438342,-151.55,0.00010167,2]
[352725726,1739279438351,-151.55,0.00010174,2]
[352725727,1739279438360,-151.55,0.0001018,2]
[352725728,1739279438369,-151.55,0.00010186,2]
[352725729,1739279438378,-151.55,0.00010193,2]
[352725730,1739279438389,-273.2,0.0001032,2]
[352725732,1739279438400,-150.0,0.00010332,2]
[352725734,1739279438409,-442.75,0.00010447,2]
[352725736,1739279438419,-1021.44,0.00010712,2]
[352725737,1739279438428,-420.0,0.00010739,2]
[352725739,1739279438438,-150.0,0.00010765,2]
[352725741,1739279438447,-150.0,0.00010778,2]
[352725743,1739279438457,-262.66,0.00010778,2]
[352725745,1739279438466,-166.0,0.00010807,2]
[352725747,1739279438476,-320.56862002,0.00010825,2]
[352725749,1739279438485,-732.39094791,0.00010837,2]
[352725751,1739279438495,-8108.81098576,0.0001084,2]
[352725752,1739279438505,-8108.81098576,0.00010848,2]
[352725754,1739279438514,-8108.81098576,0.00010852,2]
[352725756,1739279438523,-320.56862002,0.00010852,2]
[352725758,1739279438533,-45831.10022006,0.00010858,2]
[352725774,1739279438693,-514.82709586,0.00010858,2]
[352725776,1739279438702,-732.39094791,0.00010861,2]
[352725778,1739279438712,-4260.90964959,0.00010873,2]
[352725781,1739279438734,-257.50546521,0.00010873,2]
[352725783,1739279438745,-3590.39587096,0.00010873,2]
[352725785,1739279438755,-46345.92731592,0.00010874,2]
[352725787,1739279438764,-46345.92731592,0.00010876,2]
[352725788,1739279438773,-732.39094791,0.0001088,2]
[352725790,1739279438782,-320.56862002,0.00010881,2]
[352725792,1739279438791,-320.56862002,0.00010885,2]
[352725794,1739279438800,-732.39094791,0.00010886,2]
[352725796,1739279438809,-46345.92731592,0.00010892,2]
[352725798,1739279438819,-1000.0,0.0001095,2]
[352725800,1739279438827,-500.0,0.00010957,2]
[352725802,1739279438837,-296.57336625,0.00010957,2]
[352725804,1739279438846,-500.0,0.00010958,2]
[352725806,1739279438855,-635.336871,0.00010958,2]
[352725808,1739279438865,-2080.906583,0.00010958,2]
[352725809,1739279438874,-156.792702,0.00010958,2]
[352725810,1739279438883,-500.0,0.00010958,2]
[352725811,1739279438893,-500.0,0.00010958,2]
[352725812,1739279438902,-500.0,0.00010958,2]
[352725813,1739279438911,-500.0,0.00010958,2]
[352725814,1739279438921,-500.0,0.00010958,2]
[352725815,1739279438931,-500.0,0.00010958,2]
[352725816,1739279438941,-500.0,0.00010958,2]
[352725817,1739279438951,-500.0,0.00010958,2]
[352725818,1739279438963,-500.0,0.00010958,2]
[352725819,1739279438972,-500.0,0.00010958,2]
[352725820,1739279438981,-500.0,0.00010958,2]
[352725821,1739279438998,-500.0,0.00010958,2]
[352725822,1739279439007,-500.0,0.00010958,2]
[352725823,1739279439016,-500.0,0.00010958,2]
[352725824,1739279439025,-500.0,0.00010958,2]
[352725825,1739279439034,-500.0,0.00010958,2]
[352725826,1739279439043,-500.0,0.00010958,2]
[352725827,1739279439052,-507.07111301,0.00010958,2]
[352725828,1739279439061,-500.0,0.00010958,2]
[352725829,1739279439071,-500.0,0.00010958,2]
[352725831,1739279439080,-500.0,0.00010958,2]
[352725832,1739279439089,-500.0,0.00010958,2]
[352725834,1739279439098,-500.0,0.00010958,2]
[352725836,1739279439107,-500.0,0.00010958,2]
[352725838,1739279439117,-500.0,0.00010958,2]
[352725840,1739279439126,-500.0,0.00010958,2]
[352725842,1739279439135,-500.0,0.00010958,2]
[352725844,1739279439143,-500.0,0.00010958,2]
[352725846,1739279439152,-500.0,0.00010958,2]
[352725848,1739279439161,-500.0,0.00010958,2]
[352725850,1739279439173,-500.0,0.00010958,2]
[352725852,1739279439182,-500.0,0.00010958,2]
[352725854,1739279439192,-500.0,0.00010958,2]
[352725856,1739279439201,-539.36652858,0.00010958,2]
[352725858,1739279439213,-500.0,0.00010958,2]
[352725860,1739279439222,-500.0,0.00010958,2]
[352725862,1739279439231,-767.48,0.00010958,2]
[352725864,1739279439240,-500.0,0.00010958,2]
[352725866,1739279439250,-500.0,0.00010958,2]
[352725868,1739279439259,-501.98,0.00010958,2]
[352725870,1739279439269,-500.0,0.00010958,2]
[352725872,1739279439279,-500.0,0.00010958,2]
[352725874,1739279439288,-500.0,0.00010958,2]
[352725876,1739279439298,-500.0,0.00010958,2]
[352725878,1739279439307,-500.0,0.00010958,2]
[352725880,1739279439317,-500.0,0.00010958,2]
[352725882,1739279439326,-1062.13,0.00010958,2]
[352725884,1739279439335,-500.0,0.00010958,2]
[352725886,1739279439344,-500.0,0.00010958,2]
[352725888,1739279439353,-500.0,0.00010958,2]
[352725890,1739279439363,-500.0,0.00010958,2]
[352725892,1739279439372,-500.0,0.00010958,2]
[352725894,1739279439382,-753.36,0.00010958,2]
[352725896,1739279439392,-500.0,0.00010958,2]
[352725898,1739279439404,-553.23,0.00010958,2]
[352725900,1739279439413,-152.480849,0.00010958,2]
[352725902,1739279439422,-500.0,0.00010958,2]
[352725904,1739279439431,-500.0,0.00010958,2]
[352725906,1739279439443,-500.0,0.00010958,2]
[352725908,1739279439452,-500.0,0.00010958,2]
[352725910,1739279439470,-833.77,0.00010958,2]
[352725912,1739279439480,-500.0,0.00010958,2]
[352725914,1739279439490,-500.0,0.00010958,2]
[352725916,1739279439499,-500.0,0.00010958,2]
[352725918,1739279439509,-186.04478148,0.00010958,2]
[352725920,1739279439518,-500.0,0.00010958,2]
[352725922,1739279439527,-722.55,0.00010958,2]
[352725924,1739279439536,-500.0,0.00010958,2]
[352725926,1739279439545,-988.56,0.00010958,2]
[352725928,1739279439555,-500.0,0.00010958,2]
[352725930,1739279439564,-343.52763871,0.00010958,2]
[352725932,1739279439573,-500.0,0.00010958,2]
[352725934,1739279439582,-500.0,0.00010958,2]
[352725936,1739279439591,-500.0,0.00010958,2]
[352725938,1739279439600,-500.0,0.00010958,2]
[352725940,1739279439609,-500.0,0.00010958,2]
[352725942,1739279439619,-500.0,0.00010958,2]
[352725944,1739279439628,-500.0,0.00010958,2]
[352725946,1739279439637,-500.0,0.00010958,2]
[352725948,1739279439646,-555.95871267,0.00010958,2]
[352725950,1739279439656,-644.81,0.00010958,2]
[352725952,1739279439665,-500.0,0.00010958,2]
[352725954,1739279439674,-711.9738997,0.00010958,2]
[352725992,1739279440020,-192.7461003,0.00010958,2]
[352725994,1739279440030,-500.0,0.00010958,2]
[352725996,1739279440039,-500.0,0.00010958,2]
[352725998,1739279440050,-520.81458321,0.00010958,2]
[352726061,1739279440657,-500.0,0.00010712,2]
[352726063,1739279440667,-396.49541679,0.00010958,2]
[352726064,1739279440677,-193.04719811,0.00010958,2]
[352726066,1739279440686,-500.0,0.00010958,2]
[352726069,1739279440696,-504.69971719,0.00010958,2]
[352726070,1739279440706,-500.0,0.00010958,2]
[352726072,1739279440718,-753.31,0.00010958,2]
[352726074,1739279440728,-681.37,0.00010958,2]
[352726076,1739279440737,-500.0,0.00010958,2]
[352726078,1739279440746,-500.0,0.00010958,2]
[352726080,1739279440756,-500.0,0.00010958,2]
[352726082,1739279440765,-500.0,0.00010958,2]
[352726084,1739279440774,-500.0,0.00010958,2]
[352726086,1739279440783,-500.0,0.00010958,2]
[352726088,1739279440792,-500.0,0.00010958,2]
[352726090,1739279440801,-902.15,0.00010958,2]
[352726092,1739279440810,-905.6,0.00010958,2]
[352726094,1739279440819,-740.54,0.00010958,2]
[352726096,1739279440829,-20.17045822,0.00010958,2]
[352726099,1739279440845,-479.82954178,0.00010958,2]
[352726101,1739279440855,-145.96205753,0.00010958,2]
[352726103,1739279440866,-403.90794247,0.00010958,2]
[352726105,1739279440876,-1081.08,0.00010958,2]
[352726107,1739279440885,-500.0,0.00010958,2]
[352726109,1739279440895,-500.0,0.00010958,2]
[352726111,1739279440904,-500.0,0.00010958,2]
[352726113,1739279440913,-500.0,0.00010958,2]
[352726115,1739279440923,-500.0,0.00010958,2]
[352726117,1739279440932,-500.0,0.00010958,2]
[352726119,1739279440941,-500.0,0.00010958,2]
[352726121,1739279440949,-500.0,0.00010958,2]
[352726123,1739279440961,-500.0,0.00010958,2]
[352726125,1739279440970,-629.08,0.00010958,2]
[352726127,1739279440980,-500.0,0.00010958,2]
[352726129,1739279440989,-500.0,0.00010958,2]
[352726131,1739279440998,-500.0,0.00010958,2]
[352726133,1739279441008,-500.0,0.00010958,2]
[352726135,1739279441017,-500.0,0.00010958,2]
[352726137,1739279441027,-504.78420718,0.00010958,2]
[352726139,1739279441037,-500.0,0.00010958,2]
[352726141,1739279441047,-509.65,0.00010958,2]
[352726143,1739279441057,-500.0,0.00010958,2]
[352726145,1739279441066,-500.0,0.00010958,2]
[352726147,1739279441076,-500.0,0.00010958,2]
[352726149,1739279441085,-500.0,0.00010958,2]
[352726151,1739279441095,-500.0,0.00010958,2]
[352726153,1739279441103,-500.0,0.00010958,2]
[352726155,1739279441113,-500.0,0.00010958,2]
[352726157,1739279441124,-500.0,0.00010958,2]
[352726159,1739279441133,-500.0,0.00010958,2]
[352726161,1739279441142,-500.0,0.00010958,2]
[352726163,1739279441152,-500.0,0.00010958,2]
[352726165,1739279441161,-500.0,0.00010958,2]
[352726167,1739279441171,-500.0,0.00010958,2]
[352726169,1739279441180,-500.0,0.00010958,2]
[352726171,1739279441190,-500.0,0.00010958,2]
[352726173,1739279441199,-723.36,0.00010958,2]
[352726175,1739279441211,-755.04,0.00010958,2]
[352726177,1739279441221,-500.0,0.00010958,2]
[352726179,1739279441230,-500.0,0.00010958,2]
[352726181,1739279441241,-500.0,0.00010958,2]
[352726183,1739279441250,-500.0,0.00010958,2]
[352726185,1739279441260,-500.0,0.00010958,2]
[352726187,1739279441270,-500.0,0.00010958,2]
[352726189,1739279441279,-500.0,0.00010958,2]
[352726191,1739279441289,-500.0,0.00010958,2]
[352726193,1739279441299,-1029.84,0.00010958,2]
[352726195,1739279441308,-500.0,0.00010958,2]
[352726197,1739279441317,-500.0,0.00010958,2]
[352726199,1739279441327,-500.0,0.00010958,2]
[352726201,1739279441336,-500.0,0.00010958,2]
[352726203,1739279441345,-590.74,0.00010958,2]
[352726205,1739279441355,-626.7,0.00010958,2]
[352726207,1739279441364,-500.0,0.00010958,2]
[352726209,1739279441373,-500.0,0.00010958,2]
[352726211,1739279441382,-500.0,0.00010958,2]
[352726213,1739279441391,-771.09,0.00010958,2]
[352726214,1739279441403,-500.0,0.00010958,2]
[352726216,1739279441412,-420.21590552,0.00010958,2]
[352726219,1739279441426,-79.78409448,0.00010958,2]
[352726221,1739279441436,-156.067993,0.00010958,2]
[352726223,1739279441446,-500.0,0.00010958,2]
[352726225,1739279441456,-500.0,0.00010958,2]
[352726227,1739279441467,-1037.28,0.00010958,2]
[352726229,1739279441477,-500.0,0.00010958,2]
[352726231,1739279441486,-500.0,0.00010958,2]
[352726233,1739279441496,-450.82622006,0.00010958,2]
[352726235,1739279441506,-500.0,0.00010958,2]
[352726237,1739279441515,-500.0,0.00010958,2]
[352726239,1739279441524,-500.0,0.00010958,2]
[352726241,1739279441533,-500.0,0.00010958,2]
[352726243,1739279441542,-500.0,0.00010958,2]
[352726245,1739279441551,-500.0,0.00010958,2]
[352726247,1739279441560,-500.0,0.00010958,2]
[352726249,1739279441569,-500.0,0.00010958,2]